bitfinex/quotes_ETHUSD_20251010
["timestamp","ask_amount","ask_price","bid_price","bid_amount"]
[1760113105012,3.722,4109.1,4108.1,0.685]
[1760113105208,0.251,4109.2,4108.2,3.06775607]
[1760113105528,0.718,4109.1,4108.3,2.4340598]
[1760113105708,3.49774241,4109.1,4107.9,0.002]
[1760113105907,4.3537483,4108.9,4107.9,2.43628775]
[1760113106140,2.43389541,4108.7,4107.9,0.002]
[1760113106343,3.722,4108.6,4107.9,0.002]
[1760113106643,2.43404812,4108.4,4107.9,0.002]
[1760113106844,3.722,4108.3,4107.9,0.002]
[1760113107222,3.722,4108.7,4108.0,0.4558]
[1760113107561,0.64968999,4109.7,4108.1,0.2292]
[1760113107869,3.723,4109.7,4108.2,2.795929]
[1760113108058,3.723,4109.7,4109.1,2.43362293]
[1760113108354,0.001,4109.7,4109.1,2.88942293]
[1760113110354,0.001,4109.7,4109.1,5.44302293]
[1760113110355,1e-08,4109.2,4109.1,5.44302293]
[1760113110555,0.001,4109.7,4109.5,2.43338605]
[1760113110752,0.001,4109.7,4109.5,20.65538605]
[1760113110938,0.001,4109.7,4109.5,23.13918605]
[1760113112256,0.001,4109.7,4109.5,8.63918605]
[1760113112432,0.001,4109.7,4109.5,9.83690387]
[1760113112627,0.001,4109.7,4109.5,24.33690387]
[1760113113251,0.001,4109.7,4109.5,27.01210387]
[1760113113550,0.001,4109.7,4109.5,26.37850387]
[1760113114145,0.001,4109.7,4109.5,26.25690387]
[1760113114347,0.001,4109.7,4109.5,26.89050387]
[1760113114866,0.001,4109.7,4109.5,24.22790387]
[1760113115446,0.001,4109.7,4109.5,24.86150387]
[1760113115646,0.001,4109.7,4109.5,24.22790387]
[1760113115847,0.001,4109.7,4109.5,22.30790387]
[1760113116267,0.001,4109.7,4109.5,2.88918605]
[1760113116467,0.001,4109.7,4109.5,2.91351991]
[1760113116672,0.001,4109.7,4109.5,0.4558]
[1760113116868,0.001,4109.7,4109.4,3.721]
[1760113117073,0.001,4109.7,4109.5,2.43338605]
[1760113117476,0.001,4109.7,4109.5,2.88918605]
[1760113117920,0.001,4109.7,4109.5,3.79355181]
[1760113118084,0.001,4109.7,4109.5,3.81788567]
[1760113118284,0.001,4109.7,4109.5,3.79355181]
[1760113119754,0.001,4109.7,4109.5,3.81788567]
[1760113119948,0.001,4109.7,4109.5,3.79355181]
[1760113120481,0.001,4109.7,4109.5,5.73788567]
[1760113120646,0.001,4109.7,4109.5,5.71355181]
[1760113121797,0.001,4109.7,4109.5,6.34715181]
[1760113122020,0.001,4109.7,4109.5,5.71355181]
[1760113122167,0.001,4109.7,4109.5,11.46155181]
[1760113122611,0.001,4109.7,4109.5,25.96155181]
[1760113123288,0.001,4109.7,4109.5,26.59515181]
[1760113123975,1e-08,4110.1,4110.0,4.98669002]
[1760113124189,1e-08,4110.1,4110.0,9.44867587]
[1760113124394,1e-08,4110.1,4110.0,10.02607587]
[1760113124598,1e-08,4110.1,4110.0,9.39247587]
[1760113125078,1e-08,4110.1,4110.0,7.47247587]
[1760113125703,1e-08,4110.1,4108.7,2.43384133]
[1760113125704,2.4332547,4109.8,4108.5,0.4558]
[1760113125903,1e-08,4110.1,4108.7,2.43380382]
[1760113126209,2.43313153,4110.0,4109.2,2.43351564]
[1760113126415,7.2605,4109.9,4107.9,0.002]
[1760113126716,0.6336,4109.0,4108.3,2.43409265]
[1760113126889,2.43410911,4108.3,4107.9,0.002]
[1760113127074,3.72,4108.9,4107.9,0.002]
[1760113127075,2.43406275,4108.4,4107.9,0.002]
[1760113127418,1.92,4108.6,4107.9,0.002]
[1760113127713,3.72,4108.9,4108.0,0.4356]
[1760113128022,3.72,4108.9,4107.9,2.43628583]
[1760113128023,2.43427346,4108.1,4107.9,0.002]
[1760113128232,2.43427458,4108.0,4107.9,0.002]
[1760113128397,2.43427458,4108.0,4105.5,0.2345]
[1760113128398,0.6336,4107.9,4105.5,0.2345]
[1760113128585,0.6336,4107.6,4105.6,0.5887]
[1760113128788,3.947,4107.5,4106.2,2.43533551]
[1760113129101,0.099,4107.6,4105.8,1.92]
[1760113129309,3.72,4107.4,4106.5,2.43515847]
[1760113129690,3.72,4107.4,4106.1,0.2345]
[1760113129691,0.1512,4107.9,4106.4,0.4627]
[1760113129896,2.43451163,4107.6,4106.6,2.43509818]
[1760113130098,3.45988279,4107.6,4106.7,2.43501679]
[1760113130302,1.02537116,4107.6,4106.1,3.9545]
[1760113130518,1.02537116,4107.6,4106.1,3.72]
[1760113130519,0.6336,4107.5,4106.1,3.72]
[1760113130725,0.6336,4107.5,4105.8,2.3827]
[1760113130893,3.06817953,4107.5,4105.9,2.9225748]
[1760113131086,0.66269576,4107.5,4106.0,0.85625748]
[1760113131286,3.075,4107.5,4106.8,2.43498342]
[1760113131482,3.075,4107.5,4106.1,0.6972]
[1760113131686,0.2487,4108.4,4106.1,0.6972]
[1760113131687,0.2487,4108.4,4106.1,0.2345]
[1760113131923,4.35416249,4108.2,4107.3,2.43463942]
[1760113132086,0.64868999,4109.0,4107.4,0.4627]
[1760113132290,2.028,4108.8,4108.1,2.43421329]
[1760113132518,2.028,4108.8,4107.4,0.4627]
[1760113132519,0.81827837,4108.7,4107.4,0.4627]
[1760113132838,2.54570767,4109.0,4107.4,0.4627]
[1760113133017,2.4337936,4108.9,4108.1,2.43420532]
[1760113133434,2.028,4109.0,4108.4,2.43398848]
[1760113133616,0.099,4109.4,4108.7,2.43383842]
[1760113133617,5.749,4109.4,4108.7,2.43383842]
[1760113133818,0.5174541,4109.3,4108.4,0.4627]
[1760113134022,4.089,4109.8,4109.1,2.43357074]
[1760113134340,1.04298509,4109.7,4108.4,3.6357]
[1760113134520,0.51746917,4109.7,4108.4,3.6357]
[1760113134831,1.92,4109.9,4109.2,2.43351133]
[1760113135040,1.92,4109.9,4108.5,2.89667833]
[1760113135041,0.51747586,4109.9,4108.5,0.4627]
[1760113135239,0.51747586,4109.9,4109.2,2.43356068]
[1760113135396,4.8706331,4109.9,4108.5,0.4627]
[1760113135600,0.1216,4109.5,4109.1,2.43360851]
[1760113135834,0.1216,4109.5,4109.3,2.43345836]
[1760113136149,0.1216,4109.5,4109.4,2.43344527]
[1760113136432,1e-08,4110.1,4109.4,2.43344527]
[1760113136433,0.1216,4109.8,4109.4,0.4627]
[1760113136597,0.1216,4109.8,4109.5,2.43338605]
[1760113136805,1e-08,4110.1,4109.9,2.43312861]
[1760113137023,0.12160001,4110.1,4109.9,2.43312861]
[1760113137222,0.12160001,4110.1,4110.0,2.43309002]
[1760113137440,1e-08,4110.1,4110.0,2.43309002]
[1760113137803,1e-08,4110.1,4110.0,2.89579002]
[1760113138323,1e-08,4110.1,4110.0,3.4851389]
[1760113139511,1e-08,4110.1,4110.0,3.5094698]
[1760113139711,1e-08,4110.1,4110.0,5.4051389]
[1760113140407,1e-08,4110.1,4109.4,18.6827]
[1760113140627,1e-08,4110.1,4109.4,18.22]
[1760113140924,1e-08,4110.1,4108.6,0.4627]
[1760113140925,3.94800001,4110.1,4108.6,0.4627]
[1760113141119,2.43332494,4109.7,4108.2,4.4172]
[1760113141355,2.43332494,4109.7,4108.2,4.1827]
[1760113141356,2.028,4109.7,4108.2,4.1827]
[1760113141555,4.35343315,4109.5,4108.2,4.1827]
[1760113141790,2.43345383,4109.4,4108.2,4.1827]
[1760113141926,2.43343468,4109.5,4108.7,2.43384794]
[1760113142121,2.55822257,4109.6,4108.2,4.1827]
[1760113142331,2.55822257,4109.6,4107.9,2.028]
[1760113142332,0.6336,4109.4,4107.6,4.1827]
[1760113142532,2.43356371,4109.2,4107.6,4.60097]
[1760113142732,1.92,4109.2,4107.7,0.48704452]
[1760113142953,2.62240291,4109.3,4108.4,2.43398914]
[1760113142954,0.18888453,4109.3,4108.4,2.43398914]
[1760113143119,2.43370073,4109.0,4107.7,4.1827]
[1760113143437,0.099,4109.2,4107.7,3.72]
[1760113143643,2.43373909,4109.0,4107.8,2.4343931]
[1760113143842,0.42358845,4109.1,4107.9,0.4627]
[1760113144040,0.42358845,4109.1,4107.7,3.72]
[1760113144454,1.92,4108.9,4107.7,3.72]
[1760113144753,0.42358845,4109.1,4108.2,2.4341436]
[1760113144965,2.43375542,4108.9,4108.1,2.43421283]
[1760113145133,2.43374139,4108.9,4108.1,2.43421297]
[1760113145458,2.43376557,4108.9,4107.7,4.1827]
[1760113145657,2.43403378,4108.5,4107.3,2.43463818]
[1760113145822,8.84802,4108.4,4106.5,0.4647]
[1760113146024,0.6336,4107.9,4106.5,0.002]
[1760113146225,2.43510446,4106.6,4106.5,0.002]
[1760113146448,10.10310446,4106.6,4106.5,0.002]
[1760113146651,0.099,4107.1,4106.5,0.002]
[1760113146964,0.51733105,4107.8,4106.5,0.4647]
[1760113147122,0.51733105,4108.1,4106.5,0.4647]
[1760113147468,3.674,4109.1,4106.5,2.3847]
[1760113147635,0.3674,4109.0,4106.7,0.6336]
[1760113147835,0.099,4109.5,4107.0,2.43486729]
[1760113148089,2.221,4109.5,4107.2,2.5536]
[1760113148400,2.4334973,4109.4,4108.3,2.4340937]
[1760113148567,2.73936868,4109.5,4108.6,2.43386589]
[1760113148568,2.43343218,4109.5,4108.6,2.43386589]
[1760113148764,2.43424239,4109.8,4108.2,0.4627]
[1760113148765,0.001,4109.8,4108.2,0.4627]
[1760113148963,0.001,4109.8,4108.7,2.43385954]
[1760113149211,2.43340798,4109.5,4108.3,0.64452]
[1760113149407,2.43343383,4109.5,4108.5,2.43397111]
[1760113149570,0.001,4109.8,4108.6,2.43390102]
[1760113149765,0.001,4109.8,4108.3,2.43409109]
[1760113149766,0.001,4109.8,4108.2,3.13135191]
[1760113150004,5.641,4109.8,4108.4,0.4627]
[1760113150295,0.1216,4109.3,4108.6,0.1216]
[1760113150502,0.1216,4109.3,4108.9,2.43372156]
[1760113150702,0.1216,4109.3,4108.6,0.1216]
[1760113150884,0.1216,4109.3,4108.1,3.72]
[1760113150885,2.5536,4109.6,4108.1,3.72]
[1760113151069,0.1216,4108.8,4108.3,2.43404081]
[1760113151269,0.1216,4108.8,4108.4,2.43403758]
[1760113151488,0.1216,4108.8,4108.2,0.1216]
[1760113151844,0.52007326,4109.5,4107.7,0.4627]
[1760113152105,0.1216,4108.8,4108.1,0.1216]
[1760113152302,0.1216,4108.8,4108.6,2.43388057]
[1760113152488,1.92,4109.7,4108.7,0.4627]
[1760113152689,0.1216,4109.2,4109.0,2.43364431]
[1760113152883,0.1216,4109.2,4108.8,2.43374795]
[1760113153082,0.1216,4109.2,4108.7,2.43384685]
[1760113153280,0.1216,4109.2,4108.7,2.43381334]
[1760113153475,0.1216,4109.2,4108.5,0.1216]
[1760113153676,0.1216,4109.2,4109.0,2.43365563]
[1760113154007,0.1216,4109.2,4109.1,2.43362293]
[1760113154313,0.1216,4109.2,4108.5,2.55552314]
[1760113154502,0.1216,4109.2,4108.6,2.43391909]
[1760113154717,0.1216,4109.2,4108.9,2.43373249]
[1760113154916,1.92,4109.6,4109.1,2.43362293]
[1760113154917,0.52259019,4109.6,4109.1,2.43362293]
[1760113155075,0.001,4109.8,4109.7,2.43326763]
[1760113155398,0.001,4110.3,4110.2,2.43297163]
[1760113155627,0.001,4110.3,4110.2,4.59424523]
[1760113155922,0.001,4110.3,4110.2,5.04527163]
[1760113156138,0.001,4110.3,4110.2,6.00855779]
[1760113156341,0.001,4110.3,4110.2,7.92855779]
[1760113156628,0.001,4110.3,4110.2,8.44055779]
[1760113156841,0.001,4112.5,4112.4,2.43167007]
[1760113156990,0.001,4112.5,4112.4,6.15267007]
[1760113157292,0.001,4113.4,4112.9,2.43137445]
[1760113157491,0.12692758,4114.2,4114.1,2.43066527]
[1760113157691,0.12692758,4114.2,4114.1,6.84826527]
[1760113157932,0.64868999,4116.0,4114.1,0.6926]
[1760113158154,2.43030724,4114.8,4113.9,0.468]
[1760113158444,0.24303072,4114.7,4113.2,0.4737]
[1760113158732,2.43057929,4114.3,4113.3,2.43108689]
[1760113158942,2.43057929,4114.3,4113.2,0.4737]
[1760113158943,2.027,4115.5,4113.2,0.4737]
[1760113159094,2.43044774,4114.5,4113.5,2.43098287]
[1760113159428,2.43090245,4113.7,4112.7,2.43144669]
[1760113159599,0.24309025,4113.7,4112.7,3.726]
[1760113159812,2.5536,4114.0,4112.7,3.726]
[1760113160013,15.551551,4113.9,4111.9,0.6926]
[1760113160225,0.6336,4113.3,4111.5,0.47617554]
[1760113160443,2.43150348,4112.7,4111.5,0.47617554]
[1760113160623,3.726,4113.1,4111.5,0.47617554]
[1760113160929,1.92,4112.9,4111.7,2.43206283]
[1760113161239,0.49932,4113.0,4111.4,0.4737]
[1760113161389,1.088,4113.6,4111.5,0.02432202]
[1760113161592,0.6336,4113.0,4111.1,0.2189]
[1760113161802,0.6336,4112.6,4110.7,1.478]
[1760113162003,2.43143357,4112.8,4110.8,0.4737]
[1760113162228,0.6336,4112.9,4110.8,0.4737]
[1760113162229,2.43170639,4112.4,4110.8,0.4737]
[1760113162522,2.43170639,4112.4,4110.7,3.398]
[1760113162523,0.6336,4112.1,4110.7,1.478]
[1760113162725,1.92,4111.9,4110.7,1.478]
[1760113162926,2.43220341,4111.5,4110.7,3.91066212]
[1760113163125,1.92,4112.0,4110.8,2.43256069]
[1760113163330,2.43216142,4111.6,4110.7,3.91067242]
[1760113163498,2.43216142,4111.6,4110.8,2.43260501]
[1760113163699,0.30653064,4112.3,4110.7,1.478]
[1760113163899,0.6336,4112.5,4110.7,1.478]
[1760113163900,0.6336,4112.5,4111.4,2.4322575]
[1760113164095,1.92,4112.4,4111.5,0.02432202]
[1760113164295,0.96454636,4113.3,4112.0,2.43185099]
[1760113164296,3.947,4113.1,4112.0,2.43185099]
[1760113164630,4.35137445,4112.9,4111.7,2.43202985]
[1760113164833,4.35137445,4112.9,4111.3,0.4737]
[1760113164834,2.43150048,4112.7,4111.3,0.4737]
[1760113165043,0.87028873,4112.6,4111.5,2.43216577]
[1760113165247,3.29611357,4113.8,4111.3,0.4737]
[1760113165248,2.0193,4113.3,4111.3,0.4737]
[1760113165542,1.92,4113.1,4111.6,0.02432143]
[1760113165699,0.51859083,4113.8,4111.7,0.49802084]
[1760113166033,3.177,4114.2,4111.8,2.4320249]
[1760113166252,0.64868999,4114.8,4112.4,2.43167007]
[1760113166537,1.92,4114.8,4112.7,2.43149269]
[1760113166709,0.1208,4114.8,4114.1,0.1208]
[1760113167122,0.1208,4114.8,4114.2,0.02430606]
[1760113167334,0.1208,4115.1,4114.5,0.1208]
[1760113167560,0.1208,4115.1,4114.8,2.43020612]
[1760113167736,0.1208,4115.1,4114.5,0.1208]
[1760113168047,0.001,4115.8,4114.6,0.4737]
[1760113168199,0.001,4115.8,4114.6,6.91843455]
[1760113168401,0.001,4115.8,4114.6,4.1977]
[1760113168604,0.001,4115.8,4115.2,2.42996792]
[1760113168937,0.001,4115.8,4114.6,5.751]
[1760113169104,2.43008577,4115.1,4114.0,5.751]
[1760113169299,2.43006877,4115.2,4114.0,8.1817126]
[1760113169505,0.24300688,4115.1,4114.1,2.43065267]
[1760113169744,1.92,4115.5,4114.0,5.751]
[1760113169950,0.101,4115.8,4114.0,5.751]
[1760113169951,0.001,4115.8,4114.1,0.4737]
[1760113170231,0.001,4115.8,4114.2,2.43060619]
[1760113170232,2.4306957,4115.8,4114.2,2.43060619]
[1760113170442,0.001,4115.8,4114.3,0.4737]
[1760113170623,1.92,4115.7,4114.7,2.43030838]
[1760113170816,2.43018313,4115.0,4114.0,5.751]
[1760113171022,2.43021462,4114.9,4114.1,2.43061553]
[1760113171219,2.43017992,4115.0,4113.7,0.4737]
[1760113171434,2.43018464,4115.0,4114.1,2.43064213]
[1760113171744,2.43019271,4114.9,4113.7,0.4737]
[1760113171914,2.67327104,4114.8,4113.7,2.90459937]
[1760113172116,1.92,4114.7,4114.0,2.43067545]
[1760113172314,0.6336,4115.5,4114.1,2.4549538]
[1760113172527,2.43006245,4115.2,4114.4,2.43048692]
[1760113172728,2.43008663,4115.1,4114.3,2.4548413]
[1760113172902,1.92,4115.5,4114.2,0.4737]
[1760113173224,2.86485297,4115.6,4114.9,2.4301869]
[1760113173428,0.43506701,4115.6,4114.7,2.90396746]
[1760113173639,0.001,4115.8,4115.7,2.42972033]
[1760113173843,0.001,4115.8,4115.6,2.42977257]
[1760113174044,0.001,4115.8,4115.7,0.02429719]
[1760113174248,0.001,4115.8,4115.7,2.42972033]
[1760113174482,0.001,4115.8,4115.7,3.14639236]
[1760113175106,0.001,4115.8,4115.7,2.90342033]
[1760113176322,0.001,4115.8,4115.7,5.45702033]
[1760113176814,0.001,4115.8,4115.7,0.4737]
[1760113177012,0.001,4115.8,4115.7,2.90342033]
[1760113177721,0.001,4115.8,4115.7,0.4737]
[1760113177924,0.001,4115.8,4115.2,6.15201206]
[1760113178126,2.43069085,4115.8,4115.2,3.722]
[1760113178339,2.43069085,4115.8,4115.1,2.4987]
[1760113178340,0.36386909,4115.7,4115.1,2.1458]
[1760113178529,0.1208,4115.7,4115.1,2.1458]
[1760113178726,0.001,4115.8,4115.1,2.025]
[1760113178944,0.1208,4115.5,4115.1,2.025]
[1760113179234,0.1208,4115.5,4114.8,0.1208]
[1760113179441,2.42995059,4115.4,4114.8,0.1208]
[1760113179726,0.1208,4115.5,4114.8,0.1208]
[1760113179727,2.55064982,4115.5,4114.8,0.1208]
[1760113179933,1.01343725,4115.5,4114.8,0.1208]
[1760113180132,0.001,4115.8,4115.2,2.550777]
[1760113180327,0.001,4115.8,4115.7,2.42972033]
[1760113180566,0.001,4115.8,4115.5,2.42978367]
[1760113180859,2.42989075,4115.5,4114.6,2.43032134]
[1760113181060,2.42977186,4115.7,4114.4,2.4987]
[1760113181263,0.001,4115.8,4114.5,0.02430428]
[1760113181463,2.42972464,4115.7,4114.5,0.4737]
[1760113181665,0.001,4115.8,4114.5,0.4864479]
[1760113181864,0.001,4115.8,4115.2,2.43000942]
[1760113182066,0.001,4115.8,4114.5,0.4737]
[1760113182254,2.42976529,4115.7,4114.6,5.746]
[1760113182440,1.16486982,4115.7,4114.6,5.746]
[1760113182644,4.34977937,4115.6,4114.6,5.746]
[1760113182867,0.51617983,4115.5,4115.0,2.43007688]
[1760113183065,0.51617983,4115.7,4115.1,0.49800074]
[1760113183243,0.001,4115.8,4115.1,0.4737]
[1760113183765,0.001,4115.8,4113.7,1.92]
[1760113183766,2.42978934,4115.6,4114.9,3.72]
[1760113183969,0.51617983,4115.6,4114.9,3.72]
[1760113184272,2.94590526,4115.7,4114.9,6.15018712]
[1760113184475,0.51617983,4115.6,4115.1,2.43002693]
[1760113184783,0.51617983,4115.5,4114.9,3.72]
[1760113184946,0.64868999,4115.3,4114.3,3.719]
[1760113185267,0.35956278,4115.5,4113.8,2.025]
[1760113185268,3.07882364,4115.0,4113.8,2.025]
[1760113185448,1.28228999,4114.4,4113.6,2.43090969]
[1760113185645,0.51617983,4114.3,4113.7,0.02430901]
[1760113185869,0.51617983,4114.3,4113.4,3.614]
[1760113185870,0.51617983,4114.3,4114.2,2.43060619]
[1760113186058,0.51617983,4114.7,4114.4,2.43048804]
[1760113186259,0.51617983,4115.1,4114.2,0.24306062]
[1760113186458,3.59501736,4115.0,4114.2,2.43060619]
[1760113186690,1.16486982,4114.9,4114.0,1.12]
[1760113186904,2.43036614,4114.7,4113.9,2.43076701]
[1760113187104,1.16486982,4114.6,4113.8,2.43084253]
[1760113187397,2.43054455,4114.4,4113.7,3.719]
[1760113187561,0.51617983,4114.3,4113.7,3.719]
[1760113187762,0.51617983,4114.2,4113.7,3.719]
[1760113187958,0.51617983,4114.3,4114.2,2.43060619]
[1760113188171,0.51617983,4114.6,4113.9,0.475]
[1760113188378,0.51617983,4114.5,4113.9,2.4307708]
[1760113188572,0.51617983,4114.4,4114.0,2.43072157]
[1760113188798,0.51617983,4114.3,4113.7,4.2924]
[1760113188996,0.51617983,4114.5,4114.2,2.43057668]
[1760113189196,0.51617983,4114.4,4114.0,2.430682]
[1760113189525,0.51617983,4114.3,4114.0,2.430682]
[1760113189702,0.51617983,4114.2,4112.8,0.475]
[1760113189996,1.16486982,4114.1,4113.2,6.14918289]
[1760113190199,0.51617983,4114.0,4113.2,4.53541829]
[1760113190400,0.64868999,4113.8,4112.6,3.72]
[1760113190606,1.16486982,4113.7,4112.6,3.72]
[1760113190902,0.86524636,4114.0,4113.2,2.43118838]
[1760113190903,0.1208,4113.4,4113.2,2.43118838]
[1760113191075,0.1208,4113.4,4112.7,0.5958]
[1760113191275,0.51617983,4113.3,4112.7,1.22988]
[1760113191468,0.51617983,4113.2,4112.7,3.66136461]
[1760113191670,0.1208,4113.4,4112.7,3.66136461]
[1760113191671,0.51617983,4113.1,4113.0,2.4313062]
[1760113191881,0.51617983,4113.3,4112.9,2.43137326]
[1760113192082,0.51617983,4113.2,4112.9,0.475]
[1760113192303,0.52068871,4113.1,4112.7,0.75488]
[1760113192503,0.52068871,4113.0,4112.8,2.43142729]
[1760113192669,0.52068871,4112.9,4112.7,0.1208]
[1760113192865,0.52068871,4112.8,4112.6,0.002]
[1760113193105,0.52068871,4112.7,4112.6,2.43354638]
[1760113193316,0.52068871,4112.9,4112.6,2.9085]
[1760113193516,0.52068871,4112.8,4112.6,0.477]
[1760113193685,0.52068871,4112.7,4112.6,0.002]
[1760113193884,0.52068871,4112.7,4112.6,2.43355181]
[1760113194084,0.52068871,4112.7,4112.6,3.40958555]
[1760113194287,0.52068871,4112.9,4112.8,2.43143357]
[1760113194515,0.5217343,4112.9,4112.8,2.43143357]
[1760113194884,0.5217343,4112.9,4112.8,6.62343357]
[1760113195209,0.64868999,4113.5,4112.9,2.43137445]
[1760113195529,0.52170183,4113.4,4113.0,3.717]
[1760113195829,0.52170183,4113.3,4113.0,3.717]
[1760113195998,0.52170183,4113.2,4113.0,2.43131534]
[1760113196198,0.52170183,4113.1,4113.0,6.14831534]
[1760113196624,0.52170183,4113.1,4112.9,0.72472082]
[1760113196934,0.52202774,4113.0,4112.9,6.14737445]
[1760113197293,0.52202774,4113.2,4113.1,2.43125623]
[1760113197492,0.52202774,4113.2,4113.1,0.475]
[1760113197693,0.52202774,4113.2,4112.9,0.1208]
[1760113197930,0.64868999,4113.5,4113.0,2.43131534]
[1760113197931,0.52202774,4113.1,4113.0,2.43131534]
[1760113198221,0.52202774,4113.1,4112.9,3.716]
[1760113198424,0.52202774,4113.0,4112.9,3.716]
[1760113198614,0.52202774,4113.2,4112.9,3.716]
[1760113198811,0.52202774,4113.1,4112.6,0.1228]
[1760113199011,0.52202774,4113.0,4112.6,0.002]
[1760113199322,0.52202774,4112.9,4112.6,0.002]
[1760113199524,0.52202774,4112.8,4112.7,2.4314448]
[1760113199826,0.27202774,4112.9,4112.6,0.002]
[1760113200028,2.56868999,4113.1,4112.6,0.002]
[1760113200329,0.64868999,4113.1,4112.6,0.002]
[1760113200697,1.92,4113.0,4112.6,0.002]
[1760113200901,0.75018999,4113.0,4112.6,0.002]
[1760113201130,0.64868999,4113.0,4112.6,0.002]
[1760113201330,0.64868999,4113.1,4112.6,0.002]
[1760113201629,3.0800065,4113.0,4112.6,0.002]
[1760113201833,0.64868999,4113.1,4112.6,0.002]
[1760113202020,18.90423259,4112.7,4112.6,0.002]
[1760113202210,31.44825759,4112.7,4112.6,0.002]
[1760113202416,11.6595162,4112.3,4112.2,0.002]
[1760113202727,11.8304902,4112.3,4112.2,0.002]
[1760113202928,2.5536,4112.2,4111.8,0.002]
[1760113203131,51.03980565,4111.9,4111.8,0.002]
[1760113203330,0.6336,4111.1,4109.5,0.475]
[1760113203529,2.43284551,4110.5,4109.4,2.88538617]
[1760113203836,0.6336,4110.8,4109.5,0.02433386]
[1760113204148,5.0036585,4110.9,4109.4,0.452]
[1760113204149,3.717,4110.9,4109.6,0.49933326]
[1760113204299,1.92,4110.8,4110.1,2.43301202]
[1760113204499,4.35242331,4111.2,4110.0,3.717]
[1760113204800,0.6336,4110.8,4109.4,2.43342229]
[1760113205055,0.6336,4110.8,4109.2,3.717]
[1760113205056,1.92,4110.6,4109.2,3.717]
[1760113205347,4.35267647,4110.7,4109.9,2.43313839]
[1760113205513,1.92,4110.7,4109.2,3.717]
[1760113205839,3.717,4111.2,4109.2,3.717]
[1760113205840,0.65109972,4111.4,4109.8,0.475]
[1760113206002,0.65109972,4111.8,4110.0,1.92]
[1760113206318,2.026,4112.7,4110.1,0.7106]
[1760113206518,2.43198474,4111.9,4110.3,1.92]
[1760113206723,0.1125,4112.4,4110.3,1.92]
[1760113206724,2.006,4112.1,4110.3,1.92]
[1760113206925,6.14879466,4112.2,4111.3,2.43229886]
[1760113207111,0.1125,4112.4,4111.5,2.43218272]
[1760113207313,3.08254043,4112.8,4112.0,2.43185411]
[1760113207500,2.43104096,4113.5,4112.5,2.43160441]
[1760113207501,3.08224738,4113.3,4112.5,2.43160441]
[1760113207703,2.67709972,4113.6,4112.1,0.7106]
[1760113207902,3.718,4113.9,4112.8,2.43139021]
[1760113208129,3.9291,4113.9,4112.2,0.99184636]
[1760113208358,3.9291,4113.9,4111.7,0.779]
[1760113208359,0.65109972,4113.4,4111.7,0.779]
[1760113208546,2.43150575,4112.7,4111.7,0.779]
[1760113208735,2.43134909,4113.0,4112.2,2.43174224]
[1760113208929,3.44171299,4113.0,4112.2,2.43176445]
[1760113209168,4.35142037,4112.9,4112.1,2.4318249]
[1760113209335,2.43142037,4112.9,4111.9,2.43196543]
[1760113209544,1.92,4113.1,4112.0,0.475]
[1760113209754,0.1208,4112.7,4112.1,0.02431847]
[1760113209963,2.0344,4113.1,4112.0,0.1208]
[1760113210129,2.0344,4113.1,4111.7,0.1216]
[1760113210130,0.1208,4112.4,4111.7,0.1216]
[1760113210625,2.4318595,4112.1,4111.2,2.43237984]
[1760113210826,0.6336,4112.2,4111.0,2.43248158]
[1760113211025,0.6336,4112.2,4110.5,5.745]
[1760113211026,0.1216,4111.5,4110.9,2.43250449]
[1760113211324,0.1216,4111.5,4110.9,0.25541045]
[1760113211556,0.1216,4111.8,4111.1,0.1216]
[1760113211740,0.1216,4111.8,4111.2,0.475]
[1760113212106,0.1216,4111.8,4111.4,2.43222565]
[1760113212231,0.1216,4111.8,4111.5,0.02432202]
[1760113212430,0.1216,4111.8,4111.6,2.43212574]
[1760113212630,3.946,4112.8,4111.7,0.475]
[1760113212844,0.1208,4112.2,4111.5,0.1216]
[1760113213177,0.1208,4112.2,4111.5,2.55379545]
[1760113213380,0.1208,4112.2,4110.1,2.7366]
[1760113213381,0.6336,4112.0,4110.1,2.7366]
[1760113213673,0.1216,4111.4,4110.2,0.1216]
[1760113213973,0.1216,4110.8,4110.3,0.02432912]
[1760113214274,0.1216,4111.4,4110.7,0.1216]
[1760113214480,0.1216,4111.4,4111.1,2.43242109]
[1760113214687,0.52118544,4112.1,4111.4,2.43221099]
[1760113214837,0.5213357,4112.6,4111.5,0.02432202]
[1760113215040,0.65096825,4113.1,4111.6,0.49932143]
[1760113215242,5.744,4113.1,4111.6,0.475]
[1760113215441,0.5213357,4113.0,4111.7,0.02432084]
[1760113215645,1.17230395,4113.8,4111.8,0.475]
[1760113215894,0.86813296,4114.0,4112.0,17.7591399]
[1760113215895,0.65096825,4114.0,4112.0,17.7591399]
[1760113216050,0.5213357,4114.2,4112.3,1.92]
[1760113216256,0.001,4114.3,4113.6,2.43095141]
[1760113216466,0.001,4114.3,4113.2,2.026]
[1760113216667,0.001,4114.3,4113.4,0.463]
[1760113216959,0.001,4114.3,4113.1,3.718]
[1760113217147,0.001,4114.3,4112.7,2.026]
[1760113217148,2.43092368,4113.7,4112.7,2.026]
[1760113217352,2.43092368,4113.7,4112.8,2.43143357]
[1760113217548,0.1155,4114.0,4112.4,2.43167007]
[1760113217786,2.43116431,4113.3,4112.6,3.718]
[1760113217960,2.43124063,4113.2,4112.6,3.718]
[1760113218162,2.43132472,4113.0,4112.3,14.963]
[1760113218363,2.43142926,4112.9,4112.3,14.5]
[1760113218575,2.43132977,4113.0,4112.3,14.5]
[1760113218778,2.43118853,4113.3,4112.4,2.45598677]
[1760113218975,2.95294049,4113.3,4112.4,0.0243167]
[1760113219154,2.43119763,4113.2,4112.4,2.45593896]
[1760113219354,2.43128744,4113.1,4112.3,0.463]
[1760113219555,0.52198379,4113.2,4112.3,0.463]